fUST/lending_fUST_20250604
["ID","MTS","AMOUNT","RATE_DAILY","PERIOD"]
[364075682,1748987440264,-551.96054206,0.00023777,2]
[364075684,1748987440274,-2000.0,0.0002378,2]
[364075686,1748987440284,-2000.0,0.0002378,2]
[364075688,1748987440294,-2000.0,0.0002378,2]
[364075690,1748987440304,-2000.0,0.0002378,2]
[364075692,1748987440314,-2000.0,0.0002378,2]
[364075694,1748987440324,-2000.0,0.0002378,2]
[364075696,1748987440334,-2000.0,0.0002378,2]
[364075698,1748987440343,-2000.0,0.0002378,2]
[364075700,1748987440354,-2000.0,0.0002378,2]
[364075703,1748987440363,-2000.0,0.0002378,2]
[364075705,1748987440374,-2000.0,0.0002378,2]
[364075707,1748987440384,-2000.0,0.0002378,2]
[364075709,1748987440394,-2000.0,0.0002378,2]
[364075711,1748987440405,-2000.0,0.0002378,2]
[364075713,1748987440415,-2000.0,0.0002378,2]
[364075715,1748987440424,-2000.0,0.0002378,2]
[364075717,1748987440434,-2000.0,0.0002378,2]
[364075719,1748987440443,-2000.0,0.0002378,2]
[364075721,1748987440453,-1978.66376269,0.0002378,2]
[364075723,1748987440464,-500.0,0.00023799,2]
[364075725,1748987440473,-500.0,0.00023799,2]
[364075727,1748987440483,-500.0,0.00023799,2]
[364075729,1748987440494,-500.0,0.00023799,2]
[364075731,1748987440504,-500.0,0.00023799,2]
[364075733,1748987440513,-500.0,0.00023799,2]
[364075735,1748987440523,-500.0,0.00023799,2]
[364075738,1748987440537,-419.58557177,0.00023799,2]
[364075740,1748987440551,-500.0,0.00023799,2]
[364075742,1748987440561,-392.60563126,0.00023799,2]
[364075744,1748987440571,-500.0,0.00023799,2]
[364075746,1748987440583,-500.0,0.00023799,2]
[364075748,1748987440596,-500.0,0.00023799,2]
[364075750,1748987440606,-500.0,0.00023799,2]
[364075752,1748987440616,-649.40665939,0.00023799,2]
[364075754,1748987440626,-500.0,0.00023799,2]
[364075756,1748987440636,-500.0,0.00023799,2]
[364075758,1748987440646,-500.0,0.00023799,2]
[364075760,1748987440656,-206.18620081,0.00023799,2]
[364075762,1748987440666,-500.0,0.00023799,2]
[364075765,1748987440676,-500.0,0.00023799,2]
[364075767,1748987440687,-216.89021881,0.00023799,2]
[364075769,1748987440696,-500.0,0.00023799,2]
[364075771,1748987440707,-211.87660772,0.00023799,2]
[364075773,1748987440718,-500.0,0.00023799,2]
[364075775,1748987440728,-500.0,0.00023799,2]
[364075777,1748987440738,-500.0,0.00023799,2]
[364075779,1748987440748,-500.0,0.00023799,2]
[364075781,1748987440758,-500.0,0.00023799,2]
[364075783,1748987440768,-500.0,0.00023799,2]
[364075785,1748987440777,-500.0,0.00023799,2]
[364075787,1748987440788,-409.02410236,0.00023799,2]
[364075789,1748987440798,-249.42107124,0.00023799,2]
[364075790,1748987440808,-500.0,0.00023799,2]
[364075791,1748987440818,-500.0,0.00023799,2]
[364075792,1748987440828,-500.0,0.00023799,2]
[364075793,1748987440839,-500.0,0.00023799,2]
[364075794,1748987440848,-229.42821335,0.000238,3]
[364075795,1748987440858,-61308.62095815,0.000238,2]
[364075796,1748987440868,-34257.80244516,0.000238,3]
[364075797,1748987440878,-270047.01893491,0.000238,2]
[364075798,1748987440952,-21520.40962325,0.000238,2]
[364075799,1748987440999,-1000.91082922,0.00020934,4]
[364075800,1748987441008,-1000.91082922,0.00021107,4]
[364075801,1748987441018,-1000.91082922,0.00021279,5]
[364075802,1748987441027,-1000.91082922,0.00021452,5]
[364075803,1748987441039,-1000.91082922,0.00021624,5]
[364075804,1748987441048,-667.31329903,0.00021797,6]
[364075805,1748987441061,-333.59753019,0.00021797,6]
[364075806,1748987441070,-1000.91082922,0.00021969,6]
[364075807,1748987441081,-1000.91082922,0.00022141,6]
[364075808,1748987441090,-6506.2672237,0.000238,2]
[364075852,1748987446035,-1000.91082922,0.00022314,7]
[364075853,1748987446049,-1000.91082922,0.00022486,7]
[364075854,1748987446058,-1000.91082922,0.00022659,7]
[364075855,1748987446069,-1000.91082922,0.00022831,8]
[364075856,1748987446079,-405.0,0.00022964,2]
[364075857,1748987446089,-6035.69810402,0.00023,2]
[364075858,1748987446099,-1000.91082922,0.00023003,8]
[364075859,1748987446108,-1000.91082922,0.00023176,8]
[364075860,1748987446120,-572.6068135,0.00023315,2]
[364075861,1748987446129,-1000.91082922,0.00023348,9]
[364075862,1748987446140,-1000.91082922,0.00023521,9]
[364075863,1748987446149,-1000.91082922,0.00023693,9]
[364075864,1748987446159,-233162.42404148,0.000238,2]
[364075899,1748988540103,305.887563,0.00013699,2]
[364075936,1748988637337,-262.60356982,0.00016024,2]
[364075937,1748988637352,-937.39643018,0.00016024,2]
[364075938,1748988637362,-10000.0,0.00016025,2]
[364075939,1748988637371,-300.0,0.00016353,2]
[364075940,1748988637381,-300.0,0.00016353,2]
[364075941,1748988637391,-300.0,0.00016353,2]
[364075942,1748988637402,-5000.0,0.00016354,2]
[364075944,1748988637415,-180.83592855,0.00016926,2]
[364075946,1748988637428,-300.0,0.00017023,2]
[364075948,1748988637441,-440.0,0.00017025,2]
[364075950,1748988637451,-440.0,0.00017025,2]
[364075952,1748988637463,-440.0,0.00017025,2]
[364075955,1748988637473,-466.09,0.00017025,2]
[364075958,1748988637483,-440.0,0.00017025,2]
[364075960,1748988637494,-440.0,0.00017025,2]
[364075961,1748988637505,-440.0,0.00017025,2]
[364075962,1748988637515,-246.77268036,0.00017025,2]
[364075964,1748988637524,-440.0,0.00017025,2]
[364075966,1748988637535,-440.0,0.00017025,2]
[364075968,1748988637544,-440.0,0.00017025,2]
[364075970,1748988637554,-440.0,0.00017025,2]
[364075972,1748988637563,-440.0,0.00017025,2]
[364075974,1748988637572,-440.0,0.00017025,2]
[364075976,1748988637582,-430.0,0.00017025,2]
[364075978,1748988637591,-440.0,0.00017025,2]
[364075979,1748988637600,-497.57,0.00017025,2]
[364075982,1748988637609,-440.0,0.00017025,2]
[364075984,1748988637619,-440.0,0.00017025,2]
[364075986,1748988637629,-440.0,0.00017025,2]
[364075989,1748988637638,-440.0,0.00017025,2]
[364075991,1748988637647,-440.0,0.00017025,2]
[364075994,1748988637657,-440.0,0.00017025,2]
[364075997,1748988637666,-440.0,0.00017025,2]
[364076000,1748988637676,-440.0,0.00017025,2]
[364076003,1748988637686,-440.0,0.00017025,2]
[364076005,1748988637696,-197.13757345,0.00017025,2]
[364076007,1748988637705,-440.0,0.00017025,2]
[364076009,1748988637714,-440.0,0.00017025,2]
[364076011,1748988637723,-440.0,0.00017025,2]
[364076013,1748988637733,-260.19329504,0.00017026,2]
[364076015,1748988637742,-430.0,0.00017026,2]
[364076017,1748988637751,-430.0,0.00017026,2]
[364076019,1748988637760,-430.0,0.00017026,2]
[364076021,1748988637770,-430.0,0.00017026,2]
[364076023,1748988637779,-430.0,0.00017026,2]
[364076025,1748988637789,-430.0,0.00017026,2]
[364076027,1748988637798,-430.0,0.00017026,2]
[364076028,1748988637808,-430.0,0.00017026,2]
[364076030,1748988637817,-430.0,0.00017026,2]
[364076032,1748988637827,-430.0,0.00017026,2]
[364076034,1748988637836,-232.9454435,0.00017026,2]
[364076037,1748988637846,-239.14,0.00017026,2]
[364076039,1748988637855,-401.73885757,0.00017026,2]
[364076041,1748988637865,-480.0,0.00017026,2]
[364076043,1748988637874,-430.0,0.00017026,2]
[364076045,1748988637884,-430.0,0.00017026,2]
[364076047,1748988637893,-430.0,0.00017026,2]
[364076049,1748988637904,-230.0,0.00017026,2]
[364076051,1748988637914,-440.0,0.00017026,2]
[364076053,1748988637926,-440.0,0.00017026,2]
[364076055,1748988637938,-440.0,0.00017026,2]
[364076057,1748988637947,-440.0,0.00017026,2]
[364076059,1748988637957,-430.0,0.00017026,2]
[364076061,1748988637967,-440.0,0.00017026,2]
[364076063,1748988637976,-440.0,0.00017026,2]
[364076065,1748988637986,-440.0,0.00017026,2]
[364076067,1748988637995,-440.0,0.00017026,2]
[364076069,1748988638004,-440.0,0.00017026,2]
[364076071,1748988638013,-440.0,0.00017026,2]
[364076073,1748988638022,-440.0,0.00017026,2]
[364076075,1748988638031,-440.0,0.00017026,2]
[364076077,1748988638040,-430.0,0.00017026,2]
[364076079,1748988638050,-440.0,0.00017026,2]
[364076081,1748988638059,-371.02602251,0.00017026,2]
[364076083,1748988638069,-440.0,0.00017026,2]
[364076085,1748988638078,-440.0,0.00017026,2]
[364076087,1748988638087,-440.0,0.00017026,2]
[364076089,1748988638096,-440.0,0.00017026,2]
[364076091,1748988638106,-440.0,0.00017026,2]
[364076093,1748988638116,-440.0,0.00017026,2]
[364076095,1748988638125,-440.0,0.00017026,2]
[364076097,1748988638135,-440.0,0.00017026,2]
[364076099,1748988638144,-430.0,0.00017026,2]
[364076101,1748988638154,-440.0,0.00017026,2]
[364076103,1748988638163,-430.0,0.00017026,2]
[364076105,1748988638173,-440.0,0.00017026,2]
[364076107,1748988638183,-400.0,0.00017026,2]
[364076109,1748988638194,-430.0,0.00017026,2]
[364076110,1748988638203,-430.0,0.00017026,2]
[364076112,1748988638213,-430.0,0.00017026,2]
[364076114,1748988638222,-430.0,0.00017026,2]
[364076116,1748988638231,-430.0,0.00017026,2]
[364076118,1748988638241,-440.0,0.00017026,2]
[364076120,1748988638250,-440.0,0.00017026,2]
[364076122,1748988638259,-181.92350618,0.00017026,2]
[364076124,1748988638268,-440.0,0.00017026,2]
[364076126,1748988638278,-440.0,0.00017026,2]
[364076128,1748988638287,-440.0,0.00017026,2]
[364076130,1748988638296,-440.0,0.00017026,2]
[364076133,1748988638307,-430.0,0.00017026,2]
[364076135,1748988638316,-440.0,0.00017026,2]
[364076137,1748988638325,-440.0,0.00017026,2]
[364076139,1748988638335,-430.0,0.00017026,2]
[364076140,1748988638345,-440.0,0.00017026,2]
[364076142,1748988638355,-440.0,0.00017026,2]
[364076144,1748988638365,-200.18887765,0.00017026,2]
[364076147,1748988638374,-430.0,0.00017026,2]
[364076148,1748988638384,-239.40801279,0.00017026,2]
[364076151,1748988638394,-440.0,0.00017026,2]
[364076152,1748988638403,-440.0,0.00017026,2]
[364076155,1748988638415,-430.65839878,0.00017026,2]
[364076157,1748988638425,-430.0,0.00017026,2]
[364076159,1748988638436,-500.0,0.00017026,2]
[364076161,1748988638446,-24900.0,0.00017026,2]
[364076163,1748988638457,-861.5560049,0.00017271,2]
[364076165,1748988638467,-440.0,0.00017299,2]
[364076167,1748988638477,-440.0,0.00017299,2]
[364076169,1748988638488,-466.09,0.00017299,2]
[364076171,1748988638496,-440.0,0.00017299,2]
[364076173,1748988638507,-440.0,0.00017299,2]
[364076175,1748988638516,-440.0,0.00017299,2]
[364076177,1748988638525,-440.0,0.00017299,2]
[364076179,1748988638536,-440.0,0.00017299,2]
[364076181,1748988638546,-440.0,0.00017299,2]
[364076183,1748988638555,-440.0,0.00017299,2]
[364076185,1748988638566,-440.0,0.00017299,2]
[364076187,1748988638576,-440.0,0.00017299,2]
[364076189,1748988638585,-440.0,0.00017299,2]
[364076191,1748988638595,-497.57,0.00017299,2]
[364076194,1748988638612,-440.0,0.00017299,2]
[364076196,1748988638625,-440.0,0.00017299,2]
[364076198,1748988638634,-440.0,0.00017299,2]
[364076200,1748988638644,-440.0,0.00017299,2]
[364076202,1748988638654,-440.0,0.00017299,2]
[364076204,1748988638664,-440.0,0.00017299,2]
[364076206,1748988638673,-440.0,0.00017299,2]
[364076208,1748988638683,-440.0,0.00017299,2]
[364076210,1748988638693,-440.0,0.00017299,2]
[364076212,1748988638703,-440.0,0.00017299,2]
[364076214,1748988638713,-500.0,0.000173,2]
[364076216,1748988638723,-444.12046204,0.000173,2]
[364076218,1748988638734,-440.0,0.000173,2]
[364076220,1748988638744,-430.0,0.000173,2]
[364076222,1748988638754,-517.97156675,0.000173,2]
[364076224,1748988638764,-268.15148337,0.000173,2]
[364076225,1748988638773,-440.0,0.000173,2]
[364076226,1748988638783,-440.0,0.000173,2]
[364076227,1748988638793,-392.99,0.000173,2]
[364076228,1748988638803,-529.87659794,0.000173,2]
[364076229,1748988638813,-420.0,0.000173,2]
[364076230,1748988638823,-440.0,0.000173,2]
[364076231,1748988638832,-476.05225503,0.000173,2]
[364076232,1748988638842,-420.0,0.000173,2]
[364076233,1748988638852,-440.0,0.000173,2]
[364076234,1748988638862,-524.85156143,0.000173,2]
[364076235,1748988638871,-440.0,0.000173,2]
[364076236,1748988638881,-440.0,0.000173,2]
[364076237,1748988638890,-440.0,0.000173,2]
[364076238,1748988638900,-420.0,0.000173,2]
[364076239,1748988638910,-420.0,0.000173,2]
[364076240,1748988638920,-440.0,0.000173,2]
[364076241,1748988638930,-440.0,0.000173,2]
[364076242,1748988638941,-430.0,0.000173,2]
[364076243,1748988638951,-245.33832303,0.000173,2]
[364076244,1748988638961,-440.0,0.000173,2]
[364076245,1748988638971,-440.0,0.000173,2]
[364076246,1748988638980,-189.63842136,0.000173,2]
[364076247,1748988638990,-212.1344529,0.00017388,2]
[364076248,1748988639000,-420.0,0.00017573,2]
[364076249,1748988639011,-349.93730541,0.00017573,2]
[364076250,1748988639020,-440.0,0.00017573,2]
[364076251,1748988639030,-420.0,0.00017573,2]
[364076252,1748988639042,-440.0,0.00017573,2]
[364076253,1748988639054,-466.09,0.00017573,2]
[364076254,1748988639064,-440.0,0.00017573,2]
[364076255,1748988639073,-420.0,0.00017573,2]
[364076256,1748988639083,-420.0,0.00017573,2]
[364076257,1748988639092,-420.0,0.00017573,2]
[364076258,1748988639101,-420.0,0.00017573,2]
[364076259,1748988639111,-440.0,0.00017573,2]
[364076260,1748988639120,-410.0,0.00017573,2]
[364076261,1748988639130,-420.0,0.00017573,2]
[364076262,1748988639140,-440.0,0.00017573,2]
[364076263,1748988639150,-420.0,0.00017573,2]
[364076264,1748988639159,-420.0,0.00017573,2]
[364076265,1748988639169,-440.0,0.00017573,2]
[364076266,1748988639178,-544.14603148,0.00017573,2]
[364076267,1748988639188,-440.0,0.00017573,2]
[364076268,1748988639197,-440.0,0.00017573,2]
[364076269,1748988639207,-497.57,0.00017573,2]
[364076270,1748988639217,-440.0,0.00017573,2]
[364076271,1748988639226,-440.0,0.00017573,2]
[364076272,1748988639237,-440.0,0.00017573,2]
[364076273,1748988639247,-440.0,0.00017573,2]
[364076274,1748988639257,-440.0,0.00017573,2]
[364076275,1748988639267,-440.0,0.00017573,2]
[364076276,1748988639276,-440.0,0.00017573,2]
[364076277,1748988639286,-440.0,0.00017573,2]
[364076278,1748988639295,-410.0,0.00017573,2]
[364076279,1748988639305,-215.22495014,0.00017573,2]
[364076280,1748988639314,-484.46,0.00017573,2]
[364076281,1748988639324,-440.0,0.00017573,2]
[364076282,1748988639334,-440.0,0.00017573,2]
[364076283,1748988639344,-1200.0,0.00017607,2]
[364076284,1748988639354,-160.0,0.00017668,2]
[364076285,1748988639364,-440.0,0.00017847,2]
[364076286,1748988639374,-410.0,0.00017847,2]
[364076287,1748988639384,-466.09,0.00017847,2]
[364076288,1748988639393,-440.0,0.00017847,2]
[364076289,1748988639404,-440.0,0.00017847,2]
[364076290,1748988639417,-440.0,0.00017847,2]
[364076291,1748988639427,-521.35,0.00017847,2]
[364076292,1748988639438,-440.0,0.00017847,2]
[364076293,1748988639448,-410.0,0.00017847,2]
[364076294,1748988639459,-497.57,0.00017847,2]
[364076295,1748988639468,-410.0,0.00017847,2]
[364076297,1748988639478,-479.36,0.00017847,2]
[364076299,1748988639491,-440.0,0.00017847,2]
[364076300,1748988639502,-440.0,0.00017847,2]
[364076302,1748988639512,-440.0,0.00017847,2]
[364076304,1748988639523,-410.0,0.00017847,2]
[364076306,1748988639533,-454.4,0.00017847,2]
[364076308,1748988639543,-410.0,0.00017847,2]
[364076310,1748988639553,-440.0,0.00017847,2]
[364076311,1748988639563,-440.0,0.00017847,2]
[364076312,1748988639574,-300.0,0.00017873,2]
[364076313,1748988639584,-1034.67139461,0.000179,2]
[364076314,1748988639595,-329.95076758,0.00017937,2]
[364076315,1748988639605,-180.83592854,0.00017945,2]
[364076316,1748988639615,-440.0,0.00018033,2]
[364076317,1748988639625,-440.0,0.00018121,2]
[364076318,1748988639636,-466.09,0.00018121,2]
[364076319,1748988639646,-440.0,0.00018121,2]
[364076321,1748988639656,-440.0,0.00018121,2]
[364076323,1748988639668,-564.6,0.00018121,2]
[364076325,1748988639683,-440.0,0.00018121,2]
[364076326,1748988639694,-497.57,0.00018121,2]
[364076327,1748988639707,-440.0,0.00018121,2]
[364076328,1748988639717,-440.0,0.00018121,2]
[364076329,1748988639728,-193.37,0.00018121,2]
[364076330,1748988639738,-440.0,0.00018121,2]
[364076331,1748988639748,-440.0,0.00018121,2]
[364076333,1748988639758,-1034.67139436,0.00018141,2]
[364076334,1748988639768,-430.0,0.00018259,2]
[364076335,1748988639778,-440.0,0.00018259,2]
[364076336,1748988639787,-440.0,0.00018259,2]
[364076337,1748988639797,-440.0,0.00018259,2]
[364076338,1748988639806,-430.0,0.0001826,2]
[364076339,1748988639816,-430.0,0.0001826,2]
[364076340,1748988639827,-430.0,0.0001826,2]
[364076341,1748988639837,-500.0,0.0001826,2]
[364076342,1748988639847,-430.0,0.0001826,2]
[364076344,1748988640011,-440.0,0.0001826,2]
[364076345,1748988640023,-430.0,0.0001826,2]
[364076347,1748988640033,-440.0,0.0001826,2]
[364076349,1748988640043,-430.0,0.0001826,2]
[364076350,1748988640052,-440.0,0.0001826,2]
[364076352,1748988640062,-462.79877276,0.0001826,2]
[364076354,1748988640071,-430.0,0.0001826,2]
[364076356,1748988640081,-430.0,0.0001826,2]
[364076358,1748988640090,-430.0,0.0001826,2]
[364076360,1748988640100,-173.16803214,0.0001826,2]
[364076362,1748988640110,-430.0,0.0001826,2]
[364076364,1748988640119,-440.0,0.0001826,2]
[364076366,1748988640129,-430.0,0.0001826,2]
[364076368,1748988640139,-430.0,0.0001826,2]
[364076370,1748988640148,-212.44666403,0.0001826,2]
[364076372,1748988640157,-430.0,0.0001826,2]
[364076374,1748988640167,-440.0,0.0001826,2]
[364076376,1748988640176,-440.0,0.0001826,2]
[364076378,1748988640185,-430.0,0.0001826,2]
[364076380,1748988640196,-440.0,0.0001826,2]
[364076382,1748988640206,-433.43119107,0.0001826,2]
[364076384,1748988640215,-440.0,0.0001826,2]
[364076386,1748988640224,-430.0,0.0001826,2]
[364076388,1748988640233,-430.0,0.0001826,2]
[364076390,1748988640243,-440.0,0.0001826,2]
[364076392,1748988640252,-440.0,0.0001826,2]
[364076394,1748988640262,-440.0,0.0001826,2]
[364076396,1748988640272,-440.0,0.0001826,2]
[364076398,1748988640282,-220.0,0.0001826,2]
[364076400,1748988640292,-430.0,0.0001826,2]
[364076402,1748988640302,-430.0,0.0001826,2]
[364076404,1748988640312,-430.0,0.0001826,2]
[364076406,1748988640322,-440.0,0.0001826,2]
[364076408,1748988640333,-440.0,0.0001826,2]
[364076410,1748988640343,-440.0,0.0001826,2]
[364076412,1748988640352,-440.0,0.0001826,2]
[364076414,1748988640362,-440.0,0.0001826,2]
[364076416,1748988640372,-440.0,0.0001826,2]
[364076418,1748988640381,-440.0,0.0001826,2]
[364076420,1748988640390,-440.0,0.0001826,2]
[364076422,1748988640399,-440.0,0.0001826,2]
[364076424,1748988640409,-440.0,0.0001826,2]
[364076426,1748988640424,-440.0,0.0001826,2]
[364076428,1748988640434,-440.0,0.0001826,2]
[364076430,1748988640445,-440.0,0.0001826,2]
[364076432,1748988640455,-440.0,0.0001826,2]
[364076433,1748988640472,-440.0,0.0001826,2]
[364076434,1748988640488,-420.0,0.00018307,2]
[364076435,1748988640500,-1034.67139436,0.00018383,2]
[364076436,1748988640510,-440.0,0.00018395,2]
[364076437,1748988640520,-466.09,0.00018395,2]
[364076438,1748988640530,-440.0,0.00018395,2]
[364076439,1748988640541,-440.0,0.00018395,2]
[364076440,1748988640550,-440.0,0.00018395,2]
[364076441,1748988640561,-497.57,0.00018395,2]
[364076442,1748988640572,-440.0,0.00018395,2]
[364076443,1748988640583,-520.94,0.00018395,2]
[364076444,1748988640594,-440.0,0.00018395,2]
[364076445,1748988640604,-440.0,0.00018395,2]
[364076446,1748988640614,-561.0,0.00018524,3]
[364076447,1748988640624,-315.69802962,0.00018533,2]
[364076448,1748988640634,-440.0,0.00018533,2]
[364076449,1748988640644,-430.0,0.00018533,2]
[364076450,1748988640654,-453.84,0.00018533,2]
[364076451,1748988640664,-440.0,0.00018533,2]
[364076452,1748988640674,-440.0,0.00018533,2]
[364076453,1748988640684,-440.0,0.00018533,2]
[364076454,1748988640697,-440.0,0.00018533,2]
[364076455,1748988640706,-440.0,0.00018533,2]
[364076456,1748988640716,-224.72,0.00018533,2]
[364076457,1748988640726,-440.0,0.00018533,2]
[364076458,1748988640736,-430.0,0.00018533,2]
[364076459,1748988640746,-486.55,0.00018533,2]
[364076460,1748988640756,-440.0,0.00018533,2]
[364076461,1748988640766,-420.0,0.00018534,2]
[364076462,1748988640775,-420.0,0.00018534,2]
[364076463,1748988640785,-420.0,0.00018534,2]
[364076464,1748988640795,-440.0,0.00018534,2]
[364076465,1748988640804,-440.0,0.00018534,2]
[364076466,1748988640815,-440.0,0.00018534,2]
[364076467,1748988640824,-440.0,0.00018534,2]
[364076469,1748988640833,-440.0,0.00018534,2]
[364076471,1748988640843,-440.0,0.00018534,2]
[364076473,1748988640853,-440.0,0.00018534,2]
[364076475,1748988640863,-440.0,0.00018534,2]
[364076477,1748988640872,-440.0,0.00018534,2]
[364076479,1748988640882,-440.0,0.00018534,2]
[364076481,1748988640891,-350.38702328,0.00018534,2]
[364076483,1748988640902,-430.01611677,0.00018534,2]
[364076485,1748988640912,-420.0,0.00018534,2]
[364076487,1748988640921,-420.0,0.00018592,2]
[364076489,1748988640930,-1034.67139436,0.00018624,2]
[364076490,1748988640940,-440.0,0.00018669,2]
[364076492,1748988640950,-466.09,0.00018669,2]
[364076494,1748988640959,-440.0,0.00018669,2]
[364076496,1748988640968,-467.06,0.00018669,2]
[364076498,1748988640978,-440.0,0.00018669,2]
[364076500,1748988640987,-49.08804199,0.00018669,2]
[364076503,1748988641003,-448.48195801,0.00018669,2]
[364076505,1748988641012,-440.0,0.00018669,2]
[364076507,1748988641022,-440.0,0.00018669,2]
[364076509,1748988641031,-440.0,0.00018669,2]
[364076511,1748988641041,-160.0,0.00018712,2]
[364076513,1748988641051,-842.5625,0.00018712,2]
[364076515,1748988641061,-1966.35197217,0.00018712,2]
[364076518,1748988641078,-10704.40939376,0.00018712,2]
[364076520,1748988641091,-229.42821335,0.00018712,2]
[364076522,1748988641100,-440.0,0.00018807,2]
[364076524,1748988641110,-453.84,0.00018807,2]
[364076526,1748988641120,-440.0,0.00018807,2]
[364076528,1748988641130,-440.0,0.00018807,2]
[364076530,1748988641140,-440.0,0.00018807,2]
[364076532,1748988641150,-440.0,0.00018807,2]
[364076534,1748988641160,-440.0,0.00018807,2]
[364076536,1748988641169,-440.0,0.00018807,2]
[364076538,1748988641179,-440.0,0.00018807,2]
[364076539,1748988641192,-514.31,0.00018808,2]
[364076541,1748988641201,-410.0,0.00018808,2]
[364076542,1748988641210,-410.0,0.00018808,2]
[364076544,1748988641220,-410.0,0.00018808,2]
[364076546,1748988641230,-410.0,0.00018808,2]
[364076547,1748988641240,-410.0,0.00018808,2]
[364076548,1748988641250,-440.0,0.00018808,2]
[364076549,1748988641259,-440.0,0.00018808,2]
[364076550,1748988641269,-420.0,0.00018808,2]
[364076551,1748988641279,-500.0,0.00018854,2]
[364076552,1748988641288,-430.0,0.00018854,2]
[364076553,1748988641298,-262.09853649,0.00018854,2]
[364076554,1748988641307,-440.0,0.00018854,2]
[364076555,1748988641317,-476.14927129,0.00018854,2]
[364076556,1748988641328,-334.02780532,0.00018854,2]
[364076557,1748988641338,-1034.67139436,0.00018866,2]
[364076558,1748988641347,-315.52145193,0.000189,2]
[364076559,1748988641357,-440.0,0.00018943,2]
[364076560,1748988641366,-466.09,0.00018943,2]
[364076561,1748988641376,-440.0,0.00018943,2]
[364076562,1748988641385,-201.22,0.00018943,2]
[364076563,1748988641394,-497.57,0.00018943,2]
[364076564,1748988641404,-440.0,0.00018943,2]
[364076565,1748988641415,-440.0,0.00018943,2]
[364076566,1748988641425,-410.66393328,0.00018943,2]
[364076567,1748988641468,-649.11,0.00018533,2]
[364076568,1748988641477,-649.11,0.00018807,2]
[364076569,1748988641488,-29.33606672,0.00018943,2]
[364076570,1748988641498,-180.83592854,0.00018964,2]
[364076571,1748988641508,-294.92,0.00019081,2]
[364076572,1748988641517,-453.84,0.00019081,2]
[364076573,1748988641527,-440.0,0.00019081,2]
[364076574,1748988641537,-440.0,0.00019081,2]
[364076575,1748988641546,-440.0,0.00019081,2]
[364076576,1748988641555,-440.0,0.00019081,2]
[364076577,1748988641565,-440.0,0.00019081,2]
[364076578,1748988641574,-440.0,0.00019081,2]
[364076579,1748988641583,-440.0,0.00019081,2]
[364076580,1748988641594,-649.11,0.00019081,2]
[364076581,1748988641603,-440.0,0.00019082,2]
[364076582,1748988641612,-379.18,0.00019082,2]
[364076583,1748988641622,-1034.67139436,0.00019107,2]
[364076584,1748988641631,-1244.34510319,0.00019117,2]
[364076585,1748988641640,-430.0,0.00019128,2]
[364076586,1748988641649,-151.0,0.00019178,2]
[364076587,1748988641658,-440.0,0.00019217,2]